bitfinex-derivatives/quotes_SOLF0:USTF0_20220104
["timestamp","ask_amount","ask_price","bid_price","bid_amount"]
[1641313663613,12.3687269,171.14,171.1,4.0]
[1641313664112,12.3687269,171.15,171.1,4.0]
[1641313665115,12.3687269,171.14,171.1,4.0]
[1641313665313,17.1407269,171.14,171.1,4.0]
[1641313665514,17.1407269,171.14,171.06,15.37118432]
[1641313665717,3.0,171.13,171.07,4.0]
[1641313665916,17.1407269,171.14,171.06,12.37118432]
[1641313666916,27.66479,171.1,171.05,1.26165341]
[1641313667916,2.86311731,171.09,171.05,1.26165341]
[1641313670017,2.86311731,171.09,171.07,4.0]
[1641313670221,2.86311731,171.09,171.05,1.26165341]
[1641313670618,27.66479,171.1,171.05,1.26165341]
[1641313670820,27.66479,171.1,171.07,4.0]
[1641313671420,27.66479,171.1,171.07,7.0]
[1641313672121,27.66479,171.1,171.08,1.26165341]
[1641313673322,41.1709,171.13,171.08,1.26165341]
[1641313674426,2.862252,171.12,171.06,12.37118432]
[1641313675729,2.862252,171.12,171.05,13.63283773]
[1641313676429,2.862252,171.12,171.06,12.37118432]
[1641313677231,2.862252,171.12,171.05,13.63283773]
[1641313678432,2.862252,171.12,171.09,4.0]
[1641313678732,2.862252,171.12,171.09,8.652]
[1641313679133,41.1709,171.13,171.1,1.26165341]
[1641313679933,41.1709,171.13,171.09,8.652]
[1641313680335,34.57309177,171.13,171.09,8.652]
[1641313680737,2.8618552,171.12,171.1,1.26186376]
[1641313681336,12.37124315,171.16,171.1,1.26186376]
[1641313681937,12.37124315,171.16,171.1,5.26186376]
[1641313682337,15.23276756,171.17,171.1,5.26186376]
[1641313682738,15.23276756,171.17,171.1,1.26186376]
[1641313682937,2.86152441,171.17,171.11,1.26186376]
[1641313683137,27.66479,171.14,171.11,1.26186376]
[1641313683739,2.86152441,171.13,171.08,1.26186376]
[1641313685338,12.37124315,171.15,171.1,4.0]
[1641313685940,15.23276756,171.16,171.11,1.26186376]
[1641313687339,12.37124315,171.15,171.11,1.26186376]
[1641313687940,12.37124315,171.14,171.08,1.26186376]
[1641313689344,12.37124315,171.14,171.1,4.0]
[1641313689746,12.37124315,171.15,171.1,4.0]
[1641313690445,2.86152441,171.16,171.11,1.26186376]
[1641313693150,2.86152441,171.16,171.11,28.92665376]
[1641313694051,2.86152441,171.16,171.13,4.0]
[1641313694850,2.86152441,171.16,171.12,1.26186376]
[1641313695051,2.86152441,171.16,171.14,1.26186376]
[1641313695650,15.23276756,171.16,171.08,19.74605169]
[1641313696054,18.23276756,171.16,171.08,19.74605169]
[1641313696754,18.23276756,171.16,171.08,13.63304808]
[1641313696955,12.37124315,171.15,171.08,1.26186376]
[1641313697658,12.37124315,171.14,171.08,1.26186376]
[1641313699959,12.37124315,171.13,171.08,1.26186376]
[1641313700559,12.37124315,171.14,171.08,1.26186376]
[1641313702569,12.37124315,171.13,171.08,1.26186376]
[1641313703467,18.85224315,171.13,171.08,1.26186376]
[1641313704065,2.86152441,171.12,171.08,1.26186376]
[1641313704767,2.86152441,171.12,171.06,1.26186376]
[1641313705469,37.3543,171.12,171.06,1.26186376]
[1641313707971,41.8763,171.12,171.06,1.26186376]
[1641313708573,2.84884443,171.11,171.04,1.26186376]
[1641313709374,27.66479,171.1,171.04,1.26186376]
[1641313710278,31.86979,171.1,171.04,1.26186376]
[1641313710477,31.86979,171.1,171.03,1.26186376]
[1641313710975,31.86979,171.1,171.01,1.26186376]
[1641313711175,2.84953685,171.09,171.01,1.26186376]
[1641313711976,38.2624,171.08,171.01,1.26186376]
[1641313712375,2.84953685,171.07,171.02,12.37118432]
[1641313713477,30.51432685,171.07,171.02,12.37118432]
[1641313713680,42.88557,171.07,171.01,1.26186376]
[1641313714178,2.84953685,171.06,171.01,1.26186376]
[1641313717080,15.22078,171.06,171.01,1.26186376]
[1641313717581,15.22078,171.06,170.91,27.66479]
[1641313717781,13.22773348,171.06,170.93,121.98235284]
[1641313718180,13.22773348,171.06,170.93,32.98235284]
[1641313718381,3.0,170.99,170.93,32.98235284]
[1641313718983,3.0,171.0,170.91,27.66479]
[1641313719283,3.0,171.0,170.91,33.55279]
[1641313719483,27.66479,170.98,170.91,33.55279]
[1641313719682,30.66479,170.98,170.91,33.55279]
[1641313719882,27.66479,170.98,170.91,33.55279]
[1641313720485,3.0,170.97,170.91,33.55279]
[1641313720685,30.66479,170.98,170.91,33.55279]
[1641313720886,3.0,170.97,170.91,33.55279]
[1641313721084,3.0,170.96,170.91,33.55279]
[1641313721484,3.0,170.97,170.91,5.888]
[1641313721786,3.0,170.97,170.87,6.553]
[1641313722184,3.0,170.97,170.87,12.66388736]
[1641313722386,3.0,170.96,170.87,12.66388736]
[1641313722685,30.66479,170.98,170.87,12.66388736]
[1641313722886,3.0,170.96,170.92,4.12479575]
[1641313723687,3.0,170.96,170.91,4.12479575]
[1641313724289,3.0,170.94,170.91,4.12479575]
[1641313724488,3.0,170.96,170.91,4.12479575]
[1641313724890,10.38829524,170.97,170.91,4.12479575]
[1641313725891,10.38829524,170.97,170.92,4.12479575]
[1641313726796,30.66479,170.98,170.93,4.12479575]
[1641313727396,27.66479,170.98,170.93,4.12479575]
[1641313727895,30.66479,170.98,170.93,4.12479575]
[1641313729196,3.0,170.97,170.93,4.12479575]
[1641313729401,30.66479,170.98,170.93,4.12479575]
[1641313731397,27.66479,170.98,170.93,4.12479575]
[1641313731598,27.66479,170.98,170.9,6.352]
[1641313735199,3.0,170.97,170.9,6.352]
[1641313735600,27.66479,170.98,170.9,6.352]
[1641313735800,10.38832848,170.97,170.92,4.12479575]
[1641313735999,3.0,170.93,170.87,6.11088892]
[1641313736200,3.0,170.92,170.87,6.11088892]
[1641313736399,3.0,170.9,170.87,6.11088892]
[1641313736599,3.0,170.92,170.87,6.11088892]
[1641313736798,3.0,170.92,170.8,42.0511]
[1641313736799,6.625,170.93,170.81,6.11088892]
[1641313737500,9.625,170.93,170.81,6.11088892]
[1641313737699,27.66479,170.91,170.81,33.77567892]
[1641313738701,27.66479,170.91,170.82,6.11088892]
[1641313740605,27.66479,170.91,170.83,4.0]
[1641313740811,27.66479,170.91,170.83,8.903]
[1641313741205,21.5312405,170.91,170.83,8.903]
[1641313741805,21.5312405,170.91,170.84,27.66479]
[1641313742408,21.5312405,170.91,170.83,4.0]
[1641313743309,21.5312405,170.91,170.83,7.0]
[1641313743909,27.66479,170.94,170.85,27.66479]
[1641313744114,27.66479,170.94,170.86,4.0]
[1641313745012,3.0,170.92,170.85,27.66479]
[1641313745212,3.0,170.91,170.81,32.98235284]
[1641313745612,27.66479,170.94,170.81,32.98235284]
[1641313745811,27.66479,170.91,170.81,32.98235284]
[1641313746213,27.66479,170.91,170.8,4.0]
[1641313747714,40.04329555,170.91,170.83,12.37850555]
[1641313748214,40.04329555,170.91,170.82,12.37850555]
[1641313749115,12.37850555,170.9,170.82,12.37850555]
[1641313751116,40.04329555,170.91,170.83,12.37850555]
[1641313752117,40.04329555,170.91,170.83,16.37850555]
[1641313753219,40.04329555,170.91,170.83,12.37850555]
[1641313753819,12.37850555,170.9,170.82,12.37850555]
[1641313754019,48.58310555,170.9,170.82,18.07250555]
[1641313755221,12.37850555,170.9,170.83,4.0]
[1641313756222,40.04329555,170.91,170.83,16.37850555]
[1641313757926,2.86653923,170.9,170.84,13.63800066]
[1641313759725,15.24504478,170.92,170.84,13.63800066]
[1641313761926,15.24504478,170.92,170.86,27.66479]
[1641313762128,15.24504478,170.92,170.86,34.36779]
[1641313762729,15.24504478,170.92,170.87,1.25949511]
[1641313763731,3.0,170.9,170.87,1.25949511]
[1641313763931,27.66479,170.88,170.84,12.37850555]
[1641313764131,27.66479,170.88,170.82,12.37850555]
[1641313764532,12.37850555,170.91,170.82,12.37850555]
[1641313764732,12.37850555,170.91,170.83,4.0]
[1641313765132,12.37850555,170.91,170.82,18.71350555]
[1641313765533,16.26228491,170.92,170.84,13.63800372]
[1641313765534,18.24504478,170.92,170.84,13.63800372]
[1641313765934,27.66479,170.88,170.84,13.63800372]
[1641313766138,27.66479,170.88,170.83,1.25949817]
[1641313766935,2.86653923,170.87,170.83,1.25949817]
[1641313768137,2.86653923,170.87,170.81,13.63800372]
[1641313770640,12.37850555,170.91,170.83,12.37850555]
[1641313772042,27.66479,170.9,170.83,12.37850555]
[1641313772842,2.86712553,170.89,170.83,12.37850555]
[1641313773844,2.86712553,170.89,170.82,12.37850555]
[1641313774042,38.06772553,170.89,170.82,12.37850555]
[1641313774642,2.86712553,170.88,170.82,12.37850555]
[1641313776042,2.86712553,170.88,170.81,13.63800372]
[1641313777243,2.86712553,170.88,170.83,4.0]
[1641313777643,2.86712553,170.89,170.84,13.63800372]
[1641313777842,2.86712553,170.89,170.84,18.46100372]
[1641313778844,2.86712553,170.89,170.84,13.63800372]
[1641313779047,36.1394,170.91,170.85,1.25949817]
[1641313780144,27.66479,170.89,170.85,1.25949817]
[1641313780346,12.37850555,170.92,170.85,1.25949817]
[1641313780546,1.32713108,170.9,170.85,8.196]
[1641313780747,3.0,171.02,170.87,7.0]
[1641313780945,3.0,171.03,170.89,4.0]
[1641313781145,3.0,171.03,170.89,8.176]
[1641313781345,3.0,171.05,170.89,8.176]
[1641313781546,3.0,171.04,170.89,8.176]
[1641313781944,32.98235284,171.01,170.89,8.176]
[1641313782145,40.1603,171.0,170.9,27.66479]
[1641313782644,43.1603,171.0,170.9,27.66479]
[1641313782845,10.38916881,170.99,170.89,8.176]
[1641313784845,10.38916881,170.99,170.93,4.0]
[1641313785047,10.38916881,170.99,170.93,10.696]
[1641313786950,10.38916881,170.99,170.93,6.696]
[1641313787148,10.38916881,170.99,170.91,27.66479]
[1641313787149,10.38916881,170.99,170.9,4.0]
[1641313796161,10.38916881,170.99,170.9,34.66479]
[1641313796359,10.38916881,170.99,170.93,4.0]
[1641313796559,10.38916881,170.99,170.93,9.828]
[1641313797861,100.80744284,171.0,170.93,9.828]
[1641313798060,4.12487659,170.95,170.94,4.1253502]
[1641313798859,1.98487659,170.95,170.94,4.1253502]
[1641313799763,1.98487659,170.95,170.93,9.828]
[1641313800866,1.98487659,170.95,170.94,3.0]
[1641313801065,27.66479,171.0,170.94,3.0]
[1641313801265,60.64714284,171.03,170.97,4.0]
[1641313801466,60.64714284,171.03,170.97,10.754]
[1641313801666,27.66479,171.03,170.97,10.754]
[1641313801965,27.66479,171.03,170.97,5.42299511]
[1641313802365,10.38542437,171.02,170.97,5.42299511]
[1641313802967,10.38542437,171.02,170.94,7.0]
[1641313804567,10.38542437,171.02,170.94,4.0]
[1641313804967,88.31193284,171.03,170.94,4.0]
[1641313805167,55.32958,171.03,170.94,4.0]
[1641313806369,27.66479,171.0,170.94,4.0]
[1641313806570,27.66479,171.0,170.88,11.96]
[1641313806770,41.3784,170.99,170.88,8.96]
[1641313806970,41.3784,170.99,170.86,120.66479]
[1641313807372,44.3784,170.99,170.86,120.66479]
[1641313807571,10.38865521,170.98,170.87,6.11339039]
[1641313808572,10.38865521,170.98,170.9,4.0]
[1641313808772,10.38865521,170.98,170.9,10.578]
[1641313809271,41.3784,170.99,170.9,10.578]
[1641313809872,41.3784,170.99,170.9,6.578]
[1641313811073,12.37484166,170.98,170.9,18.95284166]
[1641313812575,12.37484166,170.98,170.9,22.95284166]
[1641313813178,53.75324166,170.99,170.91,12.37484166]
[1641313813974,41.3784,170.99,170.92,12.37484166]
[1641313814677,40.03963166,171.0,170.94,3.0]
[1641313814876,12.37484166,171.0,170.94,7.258]
[1641313815077,12.37484166,171.0,170.94,4.258]
[1641313815777,12.37484166,171.03,170.95,12.37484166]
[1641313817381,12.37484166,171.03,170.95,17.06484166]
[1641313817582,12.37484166,171.02,170.95,4.69]
[1641313819180,12.37484166,171.03,170.95,4.69]
[1641313819883,35.8313,171.04,170.96,12.37484166]
[1641313821582,12.37484166,171.02,170.96,1.26142855]
[1641313823385,12.37484166,171.02,170.96,5.26142855]
[1641313824084,15.23749946,171.03,170.97,1.26142855]
[1641313824985,12.37484166,171.02,170.97,1.26142855]
[1641313825585,12.37484166,171.02,170.96,1.26142855]
[1641313826886,12.37484166,171.01,170.96,1.26142855]
[1641313827794,12.37484166,171.01,170.96,5.26142855]
[1641313827988,12.37484166,171.02,170.96,5.26142855]
[1641313828990,15.23749946,171.03,170.97,1.26142855]
[1641313836198,12.37484166,171.02,170.97,1.26142855]
[1641313840407,15.23749946,171.03,170.97,1.26142855]
[1641313841107,12.37484166,171.02,170.97,1.26142855]
[1641313841607,15.23749946,171.03,170.97,1.26142855]
[1641313842411,2.8626578,171.03,170.97,1.26142855]
[1641313843511,15.23749946,171.03,170.97,1.26142855]
[1641313844111,2.8626578,171.03,170.97,1.26142855]
[1641313845811,2.8626578,171.03,170.97,7.98342855]
[1641313846212,2.8626578,171.03,170.98,1.26142855]
[1641313846911,2.8626578,171.03,170.98,28.92621855]
[1641313847814,2.8626578,171.03,170.99,1.26142855]
[1641313850617,2.8626578,171.03,170.99,5.26142855]
[1641313850815,2.8626578,171.03,170.99,4.0]
[1641313851818,15.23749946,171.03,170.99,4.0]
[1641313854122,15.23749946,171.03,170.99,7.0]
[1641313854325,15.23749946,171.03,170.99,4.0]
[1641313855223,15.23749946,171.03,170.99,7.0]
[1641313855423,32.98235284,171.08,171.02,4.0]
[1641313855623,26.09508763,171.08,171.02,9.268]
[1641313856024,27.66479,171.1,171.02,9.268]
[1641313856326,10.37411083,171.09,171.05,4.0]
[1641313857224,40.8094,171.12,171.05,7.0]
[1641313857424,40.8094,171.12,171.05,4.0]
[1641313857829,40.8094,171.12,171.09,4.0]
[1641313858026,10.37247055,171.11,171.09,4.0]
[1641313858726,27.66479,171.13,171.09,4.0]
[1641313859127,27.66479,171.13,171.02,9.268]
[1641313859326,49.93398211,171.12,171.02,4.0]
[1641313860328,10.37168211,171.11,171.02,4.0]
[1641313861827,4.12296338,171.04,171.03,4.12296338]
[1641313862026,10.37168211,171.11,171.03,8.28496338]
[1641313862227,10.37168211,171.11,171.06,4.0]
[1641313862428,39.5623,171.12,171.06,4.0]
[1641313863527,39.5623,171.12,171.03,29.23106157]
[1641313863728,39.5623,171.12,171.03,33.23106157]
[1641313864929,39.5623,171.12,171.06,4.0]
[1641313865728,39.5623,171.12,171.04,37.1326]
[1641313868233,39.5623,171.12,171.03,33.23106157]
[1641313868934,10.37141511,171.11,171.03,33.23106157]
[1641313869133,10.37141511,171.11,171.06,27.66479]
[1641313870636,10.37141511,171.11,171.06,31.66479]
[1641313875842,10.37141511,171.12,171.06,31.66479]
[1641313876040,10.37141511,171.12,171.06,34.66479]
[1641313876240,10.37141511,171.12,171.06,31.66479]
[1641313876440,10.37141511,171.12,171.06,34.66479]
[1641313876641,10.37141511,171.12,171.06,31.66479]
[1641313877340,27.66479,171.13,171.06,31.66479]
[1641313878843,27.66479,171.13,171.06,34.66479]
[1641313882545,27.66479,171.13,171.06,40.56479]
[1641313882745,27.66479,171.13,171.06,12.9]
[1641313882946,27.66479,171.13,171.06,4.0]
[1641313883345,27.66479,171.13,171.03,27.66479]
[1641313883545,27.66479,171.09,171.01,8.62]
[1641313883746,34.23179,171.09,171.0,4.0]
[1641313883946,34.23179,171.09,171.0,12.88]
[1641313884447,44.37807587,171.08,171.0,12.88]
[1641313885249,34.0041,171.08,171.0,12.88]
[1641313885849,46.37525072,171.08,171.0,31.36977575]
[1641313886552,46.37525072,171.08,171.0,12.88]
[1641313888053,34.0041,171.08,171.0,31.36433621]
[1641313889452,34.0041,171.08,171.0,25.25115072]
[1641313889654,46.37525072,171.08,171.0,12.88]
[1641313891055,46.37525072,171.08,171.0,4.0]
[1641313891256,52.15825072,171.08,170.98,12.37115072]
[1641313891656,12.37115072,171.05,170.96,40.03594072]
[1641313892656,12.37115072,171.03,170.96,27.66479]
[1641313895656,12.37115072,171.03,170.97,1.26335601]
[1641313895857,15.23250734,171.03,170.97,7.08935601]
[1641313896756,12.37115072,171.02,170.98,1.26335601]
[1641313898059,12.37115072,171.02,170.99,4.0]
[1641313898259,12.37115072,171.02,170.99,6.124]
[1641313898860,13.24252402,171.03,171.0,1.26335601]
[1641313898861,2.86135662,171.03,171.0,1.26335601]
[1641313900666,2.86135662,171.03,170.99,1.26335601]
[1641313901165,12.37115072,171.06,171.0,4.0]
[1641313901366,12.37115072,171.06,170.98,13.63450673]
[1641313902065,13.23903827,171.07,170.98,13.63450673]
[1641313902066,15.23250734,171.07,170.99,12.37115072]
[1641313902565,15.23250734,171.07,170.99,16.52815072]
[1641313902766,12.37115072,171.06,170.99,4.157]
[1641313903368,12.37115072,171.06,171.0,1.26335601]
[1641313903869,12.37115072,171.05,171.0,1.26335601]
[1641313905769,12.37115072,171.04,170.99,4.157]
[1641313906270,12.37115072,171.04,170.95,25.15115072]
[1641313906470,37.7284,171.03,170.95,25.15115072]
[1641313907272,40.7284,171.03,170.95,21.15115072]
[1641313907472,37.7284,171.03,170.95,21.15115072]
[1641313907771,2.86135662,171.02,170.96,1.26338933]
[1641313908172,15.23250734,171.02,170.96,1.26338933]
[1641313908972,2.86135662,171.02,170.96,5.26338933]
[1641313909771,2.86135662,171.02,170.97,1.26338933]
[1641313909971,2.86135662,171.02,170.97,7.07938933]
[1641313910472,2.86135662,171.02,170.98,1.26338933]
[1641313910972,2.86135662,171.02,170.96,13.63454005]
[1641313915078,2.86135662,171.02,170.96,1.26338933]
[1641313915682,37.7284,171.03,170.96,1.26338933]
[1641313916079,37.7284,171.03,170.96,5.26338933]
[1641313916282,37.7284,171.03,170.96,10.84938933]
[1641313917483,2.8609769,171.02,170.97,13.63454005]
[1641313918683,2.8609769,171.02,170.97,1.26338933]
[1641313922290,2.8609769,171.02,171.0,4.124331]
[1641313922490,4.124331,171.01,171.0,4.124331]
[1641313924390,10.847331,171.01,171.0,4.124331]
[1641313924590,6.723,171.01,170.97,1.26338933]
[1641313925590,6.723,171.01,170.98,4.0]
[1641313925790,37.7284,171.03,171.0,4.12443644]
[1641313925990,40.03809933,171.04,171.0,4.12443644]
[1641313926593,2.8610099,171.03,171.01,4.1244237]
[1641313927593,27.66479,171.04,170.98,4.0]
[1641313928193,2.86022675,171.03,171.01,4.12377108]
[1641313928796,27.66479,171.04,170.98,4.0]
[1641313929697,2.85989772,171.03,171.02,4.12349689]
[1641313930494,27.66479,171.04,171.02,4.12349689]
[1641313930695,27.66479,171.04,170.99,12.37115072]
[1641313930997,12.37330933,171.07,170.99,12.37115072]
[1641313931195,12.37330933,171.07,171.01,4.0]
[1641313931496,12.37330933,171.07,171.04,4.12301255]
[1641313931497,2.85931652,171.07,171.04,4.12301255]
[1641313932495,53.83100933,171.08,171.0,12.37115072]
[1641313932695,53.83100933,171.08,171.02,1.26369603]
[1641313932895,50.83100933,171.08,171.02,1.26369603]
[1641313933097,50.83100933,171.08,171.0,12.37115072]
[1641313933298,15.2328168,171.07,171.03,4.12317168]
[1641313934399,38.4577,171.08,171.02,4.12315504]
[1641313935001,15.22896986,171.07,171.01,1.2636642]
[1641313936202,15.22896986,171.07,171.02,4.12318525]
[1641313936502,15.22896986,171.07,171.02,9.38818525]
[1641313936704,2.85949243,171.07,171.04,4.12296761]
[1641313937705,50.82717743,171.08,171.02,5.265]
[1641313938404,2.85915714,171.07,171.04,4.12287973]
[1641313938805,50.82717743,171.08,171.02,5.265]
[1641313939206,50.82717743,171.08,171.04,4.0]
[1641313939406,50.82717743,171.08,171.02,5.265]
[1641313939605,2.85916214,171.07,171.04,4.1228839]
[1641313940607,12.36947743,171.08,171.03,4.0]
[1641313941110,15.22850429,171.08,171.04,5.38651548]
[1641313941711,27.66479,171.09,171.03,4.0]
[1641313942910,15.22757893,171.08,171.04,5.38656092]
[1641313943511,15.22757893,171.08,171.03,4.0]
[1641313944413,27.66479,171.09,171.03,4.0]
[1641313944611,27.66479,171.09,171.04,5.3864976]
[1641313945312,15.22711853,171.08,171.03,4.0]
[1641313945915,40.03289826,171.09,171.04,5.38646074]
[1641313946515,2.85882995,171.08,171.05,4.12260707]
[1641313947218,40.03289826,171.09,171.04,1.26376301]
[1641313948020,2.85858917,171.08,171.05,4.12223053]
[1641313948518,12.36810826,171.1,171.06,4.12204177]
[1641313948718,15.22647091,171.1,171.06,4.12204177]
[1641313949120,15.22647091,171.1,171.06,8.86404177]
[1641313949721,15.22647091,171.1,171.06,8.742]
[1641313950325,2.85836265,171.1,171.07,5.38545677]
[1641313951522,51.89340826,171.11,171.06,4.0]
[1641313952425,2.85797126,171.09,171.07,4.12171561]
[1641313953025,2.85796882,171.1,171.07,1.26374475]
[1641313953627,51.89340826,171.11,171.07,4.12172396]
[1641313955031,2.85796892,171.1,171.07,1.26374474]
[1641313955632,51.89340826,171.11,171.07,4.12165481]
[1641313956032,12.36810826,171.11,171.07,4.12165481]
[1641313956432,2.85792837,171.1,171.07,1.26375149]
[1641313957435,12.36810826,171.11,171.06,31.66479]
[1641313957833,4.12113876,171.1,171.09,4.12113876]
[1641313958535,49.54230826,171.14,171.06,52.69594072]
[1641313958735,12.36810826,171.13,171.07,1.26384901]
[1641313960038,12.36810826,171.13,171.09,4.0]
[1641313960438,15.2254968,171.13,171.09,8.12123001]
[1641313960938,12.36810826,171.14,171.1,5.38483733]
[1641313962640,12.36810826,171.14,171.09,4.0]
[1641313962641,51.70794628,171.16,171.09,4.0]
[1641313962839,13.22344628,171.15,171.09,4.0]
[1641313963440,2.85738854,171.15,171.12,4.12045974]
[1641313964340,50.84587921,171.16,171.09,4.0]
[1641313964541,50.84587921,171.16,171.13,4.0]
[1641313964742,3.0,171.15,171.08,12.37115072]
[1641313964940,19.77937921,171.16,171.08,12.37115072]
[1641313965142,27.66479,171.13,171.12,4.12046449]
[1641313965745,40.88985159,171.13,171.08,5.38514783]
[1641313966342,2.85750308,171.12,171.09,4.12119478]
[1641313967548,40.02837434,171.13,171.07,4.0]
[1641313967747,12.36358434,171.12,171.07,8.12147307]
[1641313968246,15.22127518,171.12,171.07,4.0]
[1641313968847,15.22127518,171.12,171.07,8.12148155]
[1641313969046,20.32527518,171.12,171.07,8.12148155]
[1641313969247,3.0,171.1,171.07,4.12148155]
[1641313969447,3.0,171.11,171.04,18.48889403]
[1641313969649,3.0,171.07,171.06,4.12173985]
[1641313969847,4.829,171.07,171.02,12.37115072]
[1641313970351,4.829,171.07,171.02,16.37115072]
[1641313970550,2.85769084,171.06,171.01,1.2630461]
[1641313970951,17.19689331,171.07,171.0,12.6]
[1641313971249,47.86168331,171.07,171.0,12.6]
[1641313971449,44.86168331,171.07,171.0,12.6]
[1641313971649,2.85967147,171.06,171.01,1.26303169]
[1641313972249,44.86168331,171.07,171.0,12.6]
[1641313973049,2.85968724,171.06,171.01,1.26302906]
[1641313973653,44.86168331,171.07,171.01,1.26302906]
[1641313973852,44.86168331,171.07,171.0,8.6]
[1641313975052,15.22792957,171.06,171.01,1.26297089]
[1641313975653,15.22792957,171.06,171.0,8.6]
[1641313975852,2.86003626,171.06,171.0,8.6]
[1641313976555,2.86003626,171.06,171.0,2.00252978]
[1641313977256,2.86003626,171.06,171.02,4.0]
[1641313978756,12.36789331,171.06,171.02,4.0]
[1641313979355,12.36789331,171.07,171.03,1.26359272]
[1641313979557,27.66479,171.06,171.03,1.26359272]
[1641313980459,2.86003626,171.05,171.03,1.26359272]
[1641313985563,12.36789331,171.08,171.03,1.26359272]
[1641313985762,12.36789331,171.08,171.03,7.91859272]
[1641313986164,12.36789331,171.08,171.04,1.26359272]
[1641313987764,12.36789331,171.08,171.05,4.0]
[1641313989063,15.22792957,171.11,171.06,1.26359272]
[1641313992564,15.22792957,171.11,171.09,4.0]
[1641313992766,15.22792957,171.11,171.09,10.245]
[1641313993166,2.86003626,171.11,171.09,10.245]
[1641313993969,15.22792957,171.13,171.09,10.245]
[1641313994768,2.86003626,171.13,171.1,1.26392574]
[1641313996571,12.36789331,171.15,171.12,4.0]
[1641313997671,12.36789331,171.17,171.12,4.0]
[1641313998874,12.36789331,171.17,171.11,27.66479]
[1641314001381,12.36789331,171.17,171.15,4.0]
[1641314001577,12.36789331,171.17,171.15,10.625]
[1641314002278,12.36789331,171.17,171.15,6.625]
[1641314004190,12.36789331,171.18,171.15,6.625]
[1641314004990,12.36789331,171.17,171.15,6.625]
[1641314005890,12.36789331,171.18,171.15,6.625]
[1641314006589,12.36789331,171.17,171.15,6.625]
[1641314006791,12.36789331,171.17,171.11,27.66479]
[1641314006991,12.36789331,171.17,171.12,4.0]
[1641314014199,15.36789331,171.17,171.11,27.66479]
[1641314014399,12.36789331,171.17,171.1,8.88]
[1641314015599,12.36789331,171.15,171.1,8.88]
[1641314017304,12.36789331,171.14,171.1,8.88]
[1641314018504,12.36789331,171.15,171.1,8.88]
[1641314018704,12.36789331,171.15,171.1,14.296]
[1641314021708,12.36789331,171.16,171.1,14.296]
[1641314022514,47.41399331,171.16,171.1,14.296]
[1641314023113,35.0461,171.16,171.1,14.296]
[1641314026320,35.0461,171.16,171.1,41.96079]
[1641314028022,35.0461,171.16,171.12,4.0]
[1641314030329,4.12044587,171.14,171.13,4.12044587]
[1641314030928,4.12044587,171.14,171.12,4.0]
[1641314036231,4.12044587,171.14,171.13,4.12037315]
[1641314036932,12.36789331,171.18,171.13,4.12037315]
[1641314037134,10.36301347,171.19,171.12,4.0]
[1641314037135,12.36789331,171.17,171.12,8.12037315]
[1641314037934,4.12035921,171.14,171.13,5.3846618]
[1641314038533,12.36789331,171.18,171.12,4.0]
[1641314039234,12.36789331,171.18,171.14,4.12032947]
[1641314039934,12.36789331,171.18,171.12,4.0]
[1641314040336,12.36789331,171.18,171.15,4.0]
[1641314040538,12.36789331,171.18,171.15,5.753]
[1641314041739,13.21930407,171.19,171.12,4.0]
[1641314041938,2.8562906,171.17,171.14,4.12037166]
[1641314042738,2.8562906,171.17,171.13,4.12037166]
[1641314042939,12.36111497,171.17,171.13,5.38499651]
[1641314044344,3.0,171.16,171.13,5.38499651]
[1641314045043,15.36111497,171.17,171.13,5.38499651]
[1641314045445,12.36111497,171.16,171.12,5.38499651]
[1641314046046,15.21740557,171.16,171.12,5.38499651]
[1641314047448,15.21740557,171.16,171.11,31.78516166]
[1641314047648,15.21740557,171.16,171.11,4.12037166]
[1641314048150,12.36111497,171.15,171.11,5.38491351]
[1641314050051,12.36111497,171.15,171.11,4.12037166]
[1641314050253,12.36111497,171.14,171.09,8.12037166]
[1641314050953,12.36111497,171.14,171.11,4.12037166]
[1641314051158,12.36111497,171.16,171.11,9.46137166]
[1641314052858,12.36111497,171.16,171.12,5.38496316]
[1641314054958,12.36111497,171.16,171.12,9.38496316]
[1641314055859,12.36111497,171.16,171.12,5.38496316]
[1641314056059,12.36111497,171.17,171.13,5.38496316]
[1641314056561,12.36111497,171.15,171.11,9.46137166]